[Event "Czech Championship 2022"]
[Site "Usti nad Labem"]
[Date "2022.05.22"]
[Round "9.13"]
[White "Serrano Salvador, Eduardo"]
[Black "Buchcar, Tomas"]
[Result "0-1"]
[ECO "D10"]
[WhiteElo "2286"]
[BlackElo "2183"]
[Annotator "TA"]
[PlyCount "110"]
[EventDate "2022.05.12"]
[EventType "swiss"]
[EventCountry "CZE"]
[SourceTitle "playchess.com"]
[Source "ChessBase"]
[SourceQuality "1"]
[TimeControl "40/5400+30:1800+30"]

{[%evp 9,110,2,31,31,24,24,31,27,31,22,22,22,36,28,30,26,39,20,43,26,43,38,37,47,50,47,56,-107,22,16,16,16,47,31,46,39,39,41,49,54,64,41,55,55,54,54,54,48,51,42,56,0,-8,-37,-37,-117,-44,-56,-17,-28,-4,-4,-4,-4,-4,-9,-13,-125,-125,-127,-129,-125,-125,-128,-136,-123,-129,-126,-118,-149,-144,-146,-143,-133,-95,-95,-94,-291,-303,-464,-462,-470,-468,-533,-527,-677,-662,-996,-1001,-976,-966,-926,-903]} 1. d4 {[%emt 0:06:28]} d5 {[%emt 0:00:10]} 2. c4 {[%emt 0:00:12]} c6 {[%emt 0:00:07]} 3. cxd5 {[%emt 0:00:11]} cxd5 {[%emt 0:00:07]} 4. Bg5 {[%emt 0:00:07]} Nc6 {[%emt 0:05:45]} 5. Nc3 {[%emt 0:00:50]} Nf6 {[%emt 0:01:48]} 6. Bxf6 {[%emt 0:00:16] D10: Slav Defence: 3 cxd5 (without early Nf3) and 3 Nc3.} gxf6 {[%emt 0:00:08]} 7. e3 {[%emt 0:00:12]} e6 {[%emt 0:02:04]} 8. Bd3 {[%emt 0:00:15] White is slightly better. 8.Nf3 is not played anymore.} f5 {[%emt 0:00:56]} 9. g3 {[%emt 0:00:24]} Bd6 {[%emt 0:00:33]} 10. Nf3 {[%emt 0:00:20]} Qf6 {[%emt 0:00:28]} 11. Rc1 {[%emt 0:01:36] [#]} O-O $146 {[%emt 0:02:01]} (11... a6 12. a3 Bd7 13. Ne2 Rb8 14. b4 b5 15. Qb3 h5 16. Nf4 Bxf4 17. gxf4 h4) ({Predecessor:} 11... a6 12. a3 Bd7 13. Ne2 Rb8 14. b4 b5 15. Qb3 h5 16. Nf4 Bxf4 17. gxf4 h4 {1-0 (38) Jensen,M (2039)-Piliczewski,B (1938) Chess.com INT 2022}) 12. O-O {[%emt 0:00:21]} Kh8 {[%emt 0:00:25]} 13. Na4 {[%emt 0:01:05]} Ne7 {[%emt 0:01:51]} 14. Qe2 {[%emt 0:01:29]} Rg8 {[%emt 0:01:05]} 15. Kh1 {[%emt 0:01:09]} Qg7 {[%emt 0:01:53]} 16. Rg1 {[%emt 0:00:36]} f6 {[%emt 0:00:19]} 17. Nh4 {[%emt 0:02:55]} e5 {[%emt 0:05:44]} 18. Qh5 $2 {[%emt 0:02:24] [#]} (18. a3) (18. Nc3 $14 {stays ahead.}) 18... Qg4 {[%emt 0:00:40]} (18... e4 19. Bc2 f4) (18... e4 $1 $17 {[%cal Re4d3]} 19. Bc2 f4) 19. Be2 {[%emt 0:01:13]} (19. Qh6 {keeps more tension.} Qg5 20. Qxg5 fxg5 21. dxe5 Bxe5 22. Nf3) 19... Qxh5 {[%emt 0:05:56]} 20. Bxh5 {[%emt 0:00:03]} Rg7 {[%emt 0:00:47]} 21. Nc3 {[%emt 0:01:58]} Bd7 {[%emt 0:00:47]} 22. Bf3 {[%emt 0:01:15]} Bc6 {[%emt 0:05:26]} 23. Rgd1 {[%emt 0:01:14][%cal Oc3d5]} e4 {[%emt 0:02:37]} 24. Be2 {[%emt 0:00:10]} a6 {[%emt 0:00:05]} 25. Rb1 {[%emt 0:02:28]} Bb4 {[%emt 0:03:49]} 26. Rdc1 {[%emt 0:01:51]} Kg8 {[%emt 0:01:18]} 27. a3 {[%emt 0:00:38]} Bd6 {[%emt 0:00:06]} 28. b4 {[%emt 0:02:31]} Kf7 {[%emt 0:00:12]} 29. Bf1 {[%emt 0:01:25]} Rgg8 {[%emt 0:01:04]} 30. Bh3 {[%emt 0:01:18]} (30. b5 axb5 31. Nxb5) (30. b5 $14 axb5 31. Nxb5) 30... Bd7 $11 {[%emt 0:00:42]} 31. Rc2 {[%emt 0:05:04]} Rgc8 {[%emt 0:04:50]} 32. Rbc1 {[%emt 0:03:44]} (32. Rcc1 $15) 32... Rc6 {[%emt 0:01:59]} ({Better is} 32... a5 $17 33. bxa5 Bxa3) 33. Nb1 $15 {[%emt 0:00:36]} Rxc2 {[%emt 0:01:49]} 34. Rxc2 {[%emt 0:00:05]} b5 {[%emt 0:03:25]} 35. Rc3 {[%emt 0:08:44]} a5 {[%emt 0:01:16]} 36. bxa5 {[%emt 0:00:26]} Rxa5 {[%emt 0:00:01]} 37. Rb3 {[%emt 0:00:11] Against b4} Ra4 {[%emt 0:00:23]} 38. Bf1 {[%emt 0:00:34]} (38. Kg1 $11 {remains equal.}) 38... b4 $17 {[%emt 0:00:04]} 39. axb4 {[%emt 0:00:08]} Rxb4 {[%emt 0:00:12]} 40. Nd2 {[%emt 0:00:34] [#]} Ba4 $1 {[%emt 0:01:59]} 41. Ra3 {[%emt 0:32:29] [#]} Rxd4 $3 {[%emt 0:30:30][%mdl 512]} 42. Ra2 {[%emt 0:00:59]} Rb4 $36 {[%emt 0:00:19][%mdl 2048] Black is really pushing.} 43. Bh3 {[%emt 0:00:32]} Bd7 {[%emt 0:00:39] This bishop pair is nice.} 44. Kg2 {[%emt 0:01:34]} Ke6 {[%emt 0:04:20]} 45. Rc2 {[%emt 0:04:45]} Bb5 {[%emt 0:04:18]} 46. Ra2 {[%emt 0:04:32]} Bd3 {[%emt 0:00:36]} 47. Kg1 {[%emt 0:00:41]} Be5 {[%emt 0:09:09] Black is more active.} 48. Kg2 $2 {[%emt 0:05:35] Loses the game.} (48. Bf1 $17) 48... Bc3 $19 {[%emt 0:02:59]} 49. Nf1 {[%emt 0:02:55]} (49. f3 $142) 49... Rb1 {[%emt 0:05:22] Black is clearly winning.} 50. Kg1 {[%emt 0:00:05]} d4 {[%emt 0:00:31]} 51. exd4 {[%emt 0:01:06]} Bxd4 {[%emt 0:00:05]} 52. Rd2 {[%emt 0:05:30]} Ra1 {[%emt 0:00:14]} 53. g4 {[%emt 0:00:22]} f4 {[%emt 0:00:14]} 54. g5+ {[%emt 0:00:38]} f5 {[%emt 0:00:09]} 55. Bg2 {[%emt 0:02:41]} Bc3 {[%emt 0:00:29] Weighted Error Value: White=0.33/Black=0.13 (very precise)} 0-1

[Event "Czech Championship 2022"]
[Site "Usti nad Labem"]
[Date "2022.05.22"]
[Round "9.14"]
[White "Stinka, Jakub"]
[Black "Smolik, Jachym"]
[Result "1-0"]
[ECO "E12"]
[WhiteElo "2345"]
[BlackElo "2272"]
[Annotator "TA"]
[PlyCount "69"]
[EventDate "2022.05.12"]
[EventType "swiss"]
[EventCountry "CZE"]
[SourceTitle "playchess.com"]
[Source "ChessBase"]
[SourceQuality "1"]
[TimeControl "40/5400+30:1800+30"]

{[%evp 23,69,0,0,0,0,0,29,26,25,35,30,23,25,21,15,11,41,-103,-111,-82,-22,-53,0,-14,0,-20,138,100,180,177,179,170,372,281,435,394,538,353,29962,29965,6057,6029,2293,2276,29979,29980,29992,29993]} 1. d4 {[%emt 0:05:22]} Nf6 {[%emt 0:00:03]} 2. c4 {[%emt 0:00:24]} e6 {[%emt 0:00:04]} 3. Nf3 {[%emt 0:00:03]} b6 {[%emt 0:00:08]} 4. a3 {[%emt 0:00:04]} Bb7 {[%emt 0:00:06]} 5. Nc3 {[%emt 0:00:19]} d5 {[%emt 0:00:09]} 6. cxd5 {[%emt 0:00:08]} Nxd5 {[%emt 0:00:33]} 7. e3 {[%emt 0:00:29][%cal Be2e3,Be3e4][%mdl 32]} Be7 {[%emt 0:01:52]} 8. Bb5+ {[%emt 0:00:26]} c6 {[%emt 0:01:35]} 9. Bd3 {[%emt 0:00:09]} O-O {[%emt 0:02:06]} 10. Qc2 {[%emt 0:01:10]} h6 {[%emt 0:02:35]} 11. e4 {[%emt 0:00:56]} Nxc3 {[%emt 0:00:20]} 12. bxc3 {[%emt 0:00:02]} c5 {[%emt 0:03:54]} 13. O-O {[%emt 0:00:26] E12: Queen's Indian: Unusual White 4th moves, 4 a3, 4 Nc3 Bb7 5 a3 and 4 Nc3 Bb7 .} Qc7 {[%emt 0:03:20]} 14. Qe2 {[%emt 0:01:36] [#]} cxd4 $146 {[%emt 0:10:03]} ({Predecessor:} 14... Nd7 15. e5 Rfd8 16. Bf4 Nf8 17. Qe3 Rac8 18. Rfd1 cxd4 19. cxd4 Qc3 20. a4 Ng6 21. Bg3 Bxf3 22. gxf3 Qxd4 23. Bxg6 Qxe3 24. Bxf7+ Kxf7 25. fxe3 Rxd1+ 26. Rxd1 {1-0 (76) Agrest,E (2571)-Almasi,Z (2640) Bastia 2005}) 15. cxd4 {[%emt 0:00:09] White has an edge.} Nd7 {[%emt 0:00:21]} 16. Bb2 {[%emt 0:05:43]} Rac8 {[%emt 0:09:33]} 17. Rad1 {[%emt 0:04:39]} Rfd8 {[%emt 0:06:11]} 18. Nd2 {[%emt 0:14:05]} Nf8 {[%emt 0:08:52]} 19. f4 {[%emt 0:07:08]} Qd7 {[%emt 0:07:25][%cal Oe7a3]} 20. Qg4 {[%emt 0:10:02] [#]} (20. Nc4 $14) 20... Bxa3 $1 $17 {[%emt 0:09:29][%mdl 512]} 21. Ba1 {[%emt 0:03:29][%cal Od4d5]} f6 {[%emt 0:04:28]} (21... Bb4 $17 {Strongly threatening ...Bc3.} 22. Qe2 Bc3) 22. Qg3 {[%emt 0:07:37]} Be7 {[%emt 0:01:46]} 23. Nf3 {[%emt 0:04:14]} Bc6 {[%emt 0:02:28]} 24. d5 {[%emt 0:08:20]} exd5 {[%emt 0:11:10]} ({Better is} 24... Bb5 $11) 25. e5 $16 {[%emt 0:01:18] White is more active.} Bc5+ {[%emt 0:06:20] [#]} (25... d4 $16) 26. Kh1 $1 $18 {[%emt 0:00:39]} d4 {[%emt 0:00:57]} (26... Ba4 27. exf6 Qf7 28. fxg7 Bxd1 29. gxf8=N+ Kxf8 30. Ne5 $18) 27. exf6 {[%emt 0:05:56]} Bxf3 {[%emt 0:00:11]} (27... Qf7 {was called for.}) 28. Rxf3 {[%emt 0:00:01]} Rc7 {[%emt 0:01:16]} (28... Kh8 $142 29. Bf5 Qf7 30. Bxc8 Rxc8) 29. Qh4 {[%emt 0:02:06]} Qd6 {[%emt 0:00:51]} 30. Rg3 {[%emt 0:03:19]} Kh8 $2 {[%emt 0:00:04]} (30... Nh7 $18) 31. Rxg7 {[%emt 0:01:45][%mdl 64] Remove Defender} Rxg7 {[%emt 0:00:06]} 32. Qxh6+ {[%emt 0:00:27]} ({Weaker is} 32. fxg7+ Kxg7 33. Bb2 Qf6 34. Qg4+ Kh8 $14) 32... Rh7 {[%emt 0:00:42]} 33. Bxh7 {[%emt 0:00:21][%csl Gf6][%cal Rh6g7]} Qc7 {[%emt 0:00:54] Against Qg7+} 34. Bg6+ {[%emt 0:01:00]} Nh7 {[%emt 0:00:20]} 35. f7 {[%emt 0:00:19] Weighted Error Value: White=0.19 (very precise) /Black=0.93} 1-0

[Event "Czech Championship 2022"]
[Site "Usti nad Labem"]
[Date "2022.05.22"]
[Round "9.15"]
[White "Krivanek, Vladimir"]
[Black "Paulus, Vaclav"]
[Result "0-1"]
[ECO "A01"]
[WhiteElo "2180"]
[BlackElo "2093"]
[Annotator "TA"]
[PlyCount "74"]
[EventDate "2022.05.12"]
[EventType "swiss"]
[EventCountry "CZE"]
[SourceTitle "playchess.com"]
[Source "ChessBase"]
[SourceQuality "1"]
[TimeControl "40/5400+30:1800+30"]

{[%evp 9,74,26,24,24,22,19,23,20,50,35,43,43,48,45,40,33,49,10,35,35,41,10,14,-12,12,11,89,89,90,84,95,71,517,360,356,340,329,345,326,340,335,44,33,35,52,33,79,76,98,60,56,54,48,0,0,0,15,-165,-164,-141,-12,-12,-12,-29983,-29984,-29984,-29985]} 1. b3 {[%emt 0:06:46]} b5 {[%emt 0:01:40]} 2. e3 {[%emt 0:02:13]} Bb7 {[%emt 0:00:24]} 3. Nf3 {[%emt 0:00:45]} a6 {[%emt 0:00:10]} 4. Bb2 {[%emt 0:00:29]} e6 {[%emt 0:00:40]} 5. Be2 {[%emt 0:02:26]} Nf6 {[%emt 0:00:19]} 6. O-O {[%emt 0:00:14] A01: Nimzowitsch-Larsen Opening.} Be7 {[%emt 0:00:18]} 7. d4 {[%emt 0:00:59] [#]} d6 $146 {[%emt 0:00:43]} ({Predecessor:} 7... O-O 8. c4 b4 9. Nbd2 d6 10. Qc2 Nbd7 11. Rfd1 c5 12. dxc5 Nxc5 13. Ng5 h6 14. Bxf6 hxg5 {0-1 (54) Saucourt,N (1762)-Bujisho,B (2326) Sables d'Olonne 2019}) 8. c4 {[%emt 0:00:42] White has an edge.} bxc4 {[%emt 0:00:32]} 9. bxc4 {[%emt 0:00:36]} Nbd7 {[%emt 0:00:06]} 10. Nc3 {[%emt 0:00:57]} Rb8 {[%emt 0:01:33] Threatens to win with ...Bxf3.} 11. Rb1 {[%emt 0:00:53]} O-O {[%emt 0:01:33]} 12. Qd3 {[%emt 0:14:19]} e5 {[%emt 0:01:27]} 13. dxe5 {[%emt 0:15:49]} Nxe5 {[%emt 0:01:18]} 14. Nxe5 {[%emt 0:02:28]} dxe5 {[%emt 0:00:01]} 15. Qf5 {[%emt 0:01:29]} Bd6 {[%emt 0:03:24]} 16. e4 {[%emt 0:06:19]} g6 {[%emt 0:03:22]} 17. Qf3 {[%emt 0:08:01]} Nxe4 {[%emt 0:00:08]} 18. Nxe4 $16 {[%emt 0:01:09] aiming for c5.} f5 {[%emt 0:00:13] [#]} 19. Qc3 $1 {[%emt 0:01:50]} Bxe4 {[%emt 0:00:14]} 20. c5 $1 {[%emt 0:00:35]} Be7 $2 {[%emt 0:00:32][%mdl 8192]} (20... Qg5 $16 {is a better chance.} 21. g3 Bxb1 22. Rxb1 f4) 21. Qxe5 {[%emt 0:03:06][%csl Gb2][%cal Re5g7]} Bf6 {[%emt 0:01:53] Prevents Qg7+.} 22. Qe6+ {[%emt 0:02:56]} Kg7 {[%emt 0:00:15]} 23. Rbd1 {[%emt 0:05:56]} Qe8 {[%emt 0:06:50]} 24. Rd7+ {[%emt 0:07:12]} Kh6 {[%emt 0:00:12] [#]} 25. Bc1+ $2 {[%emt 0:02:14]} (25. Bxf6 $1 $18 {Bg7+ would kill now.} Rxf6 26. Qxf6 Qxd7 27. g4 (27. Bxa6 Qd8 $14) (27. f4 Re8 $11)) 25... g5 $14 {[%emt 0:00:56]} 26. Qxe8 {[%emt 0:01:20]} Rfxe8 {[%emt 0:00:12]} 27. Bxa6 {[%emt 0:02:16]} Ra8 {[%emt 0:02:33]} (27... Re7 $14 28. Rxe7 Bxe7) 28. Bc4 $16 {[%emt 0:00:27] And now h4 would win.} Ra5 {[%emt 0:00:52]} 29. f3 {[%emt 0:03:59]} Bc6 {[%emt 0:00:51]} 30. Rxc7 {[%emt 0:01:02]} Rxc5 {[%emt 0:00:36] [#]} 31. Bb3 {[%emt 0:01:30]} (31. Rxc6 $1 $14 Rxc6 32. Bb5 Bd4+ 33. Kh1 Rxc1 34. Rxc1) 31... Bd4+ $11 {[%emt 0:01:18]} 32. Kh1 {[%emt 0:00:12] Strongly threatening h4.} Re2 {[%emt 0:00:12][%cal Oc6f3] ...Bxf3! is the strong threat.} 33. h4 $2 {[%emt 0:03:12] [#]} (33. Ra7 $11) 33... Bxf3 $1 $19 {[%emt 0:01:33][%mdl 512]} 34. Bxg5+ {[%emt 0:01:31]} Kh5 {[%emt 0:00:55] Black is more active.} (34... Kg6 $17 35. Rxf3 (35. Bf7+ $2 Kg7 $19) 35... Rxc7) 35. Rxh7+ $11 {[%emt 0:01:23]} Kg4 {[%emt 0:00:08] Chess con chili.} 36. Bd1 $2 {[%emt 0:00:41][%mdl 8192]} (36. Rxf3 $11 Re1+ 37. Kh2 Be5+ 38. Rf4+ Bxf4+ 39. Bxf4 Kxf4 40. g3+ Kf3 41. Rd7) 36... Bxg2+ {[%emt 0:00:26]} 37. Kh2 {[%emt 0:00:09]} Bxf1+ {[%emt 0:00:41][%mdl 64] Discovered Attack. What a bad dream for White.  Weighted Error Value: White=0.66/Black=0.37} 0-1

[Event "Czech Championship 2022"]
[Site "Usti nad Labem"]
[Date "2022.05.22"]
[Round "9.16"]
[White "Bouska, Jiri"]
[Black "Soucek, Petr"]
[Result "1/2-1/2"]
[ECO "B07"]
[WhiteElo "2117"]
[BlackElo "2177"]
[Annotator "TA"]
[PlyCount "138"]
[EventDate "2022.05.12"]
[EventType "swiss"]
[EventCountry "CZE"]
[SourceTitle "playchess.com"]
[Source "ChessBase"]
[SourceQuality "1"]
[TimeControl "40/5400+30:1800+30"]

{[%evp 9,138,24,30,25,23,12,31,25,20,27,25,16,23,23,27,20,23,0,2,0,50,37,46,29,31,47,29,14,12,12,17,16,16,17,22,19,38,39,39,36,32,33,38,15,45,43,44,39,70,50,70,62,68,73,72,72,85,68,113,15,14,5,12,0,61,0,3,0,0,0,0,0,0,-54,0,0,0,-51,-49,-55,-46,-48,-48,-149,-75,-90,-89,-159,0,0,0,0,0,0,227,-103,-103,-103,-87,-72,-15,-18,-25,-21,-18,-36,-19,-20,-24,-86,-46,-45,-35,-65,0,0,0,0,0,0,0,0,0,-4,0,-8,0,0,0,-8,0]} 1. e4 {[%emt 0:00:02]} d6 {[%emt 0:00:04]} 2. d4 {[%emt 0:00:10]} Nf6 {[%emt 0:00:05]} 3. Nc3 {[%emt 0:00:06]} e5 {[%emt 0:00:48]} 4. Nge2 {[%emt 0:00:21]} Nc6 {[%emt 0:01:32]} 5. g3 {[%emt 0:00:22]} Be7 {[%emt 0:01:52]} (5... Bg4 {feels hotter.} 6. d5 Nd4 7. Bg2 c5) 6. Bg2 {[%emt 0:00:13] B07: Pirc Defence: Miscellaneous Systems.} O-O {[%emt 0:02:11]} 7. O-O {[%emt 0:00:27]} Re8 {[%emt 0:01:54]} 8. h3 {[%emt 0:00:14] White is slightly better.} exd4 {[%emt 0:01:43]} 9. Nxd4 {[%emt 0:00:18]} Nxd4 {[%emt 0:01:37]} 10. Qxd4 {[%emt 0:00:16]} Nd7 {[%emt 0:00:09]} 11. Nd5 {[%emt 0:01:26]} Bf8 {[%emt 0:01:47] [#]} 12. Bd2 $146 {[%emt 0:02:38]} ({Predecessor:} 12. b3 c6 13. Ne3 Qf6 14. Bb2 Qxd4 15. Bxd4 Nc5 16. Bxc5 dxc5 17. Rad1 Be6 18. Rd2 {½-½ (26) Kilgus,G (2230)-Boehsmueller,R (2175) Austria 1998}) 12... c6 {[%emt 0:01:47]} 13. Ne3 {[%emt 0:00:57]} Qb6 {[%emt 0:04:24]} 14. Bc3 {[%emt 0:04:03]} Nf6 {[%emt 0:06:16]} (14... Qxd4 $11 15. Bxd4 Nc5) 15. Qd3 {[%emt 0:04:40]} Nd7 {[%emt 0:05:32]} 16. b4 {[%emt 0:13:06]} Ne5 {[%emt 0:03:23]} 17. Qe2 {[%emt 0:02:27]} Be6 {[%emt 0:04:32]} 18. Kh2 {[%emt 0:01:08]} Nc4 {[%emt 0:01:53]} 19. Nxc4 {[%emt 0:06:42]} Qa6 {[%emt 0:01:16] [#]} 20. Qd2 $1 {[%emt 0:00:39]} Bxc4 {[%emt 0:01:06]} 21. Rfe1 {[%emt 0:00:23]} Rad8 {[%emt 0:06:26]} 22. a4 {[%emt 0:09:31]} Rd7 {[%emt 0:17:09]} 23. b5 {[%emt 0:01:51]} Qb6 {[%emt 0:04:53]} 24. Bd4 {[%emt 0:09:45]} c5 {[%emt 0:05:11]} 25. Bc3 {[%emt 0:00:17]} Qc7 {[%emt 0:03:01]} 26. Rad1 {[%emt 0:01:01]} Red8 {[%emt 0:05:18]} 27. Qf4 {[%emt 0:04:31]} Be6 {[%emt 0:01:36]} 28. Re2 {[%emt 0:04:12]} Qb6 {[%emt 0:04:52]} 29. Red2 {[%emt 0:01:28] 0x0.0012592d59dfdp-1022s more active pieces.} (29. Qd2 $5 {[%cal Rc3a5]} Qc7 30. f4 $14) 29... a6 {[%emt 0:01:25]} 30. Bf1 {[%emt 0:00:24]} c4 {[%emt 0:02:21]} 31. bxa6 {[%emt 0:01:36]} Qxa6 {[%emt 0:02:59]} 32. a5 {[%emt 0:01:47]} Qb5 {[%emt 0:01:34]} (32... d5 $2 33. exd5 Rxd5 34. Rxd5 (34. Bxc4 Qxc4 35. Qxc4 Rxd2 $16) 34... Rxd5 35. Bxc4 Qxc4 36. Qxc4 $18) 33. Bg2 {[%emt 0:00:44]} Qc5 {[%emt 0:01:23]} 34. Bd4 {[%emt 0:01:37]} (34. Rb1 $16) 34... Qxa5 $11 {[%emt 0:01:01]} 35. Qe3 {[%emt 0:00:11]} Re8 {[%emt 0:01:01]} 36. f4 {[%emt 0:01:04]} Qb5 {[%emt 0:01:12]} (36... f6 $11) 37. Qf2 {[%emt 0:01:03]} (37. f5 $1 $14 Bd5 38. Bxg7 $1 Bxg7 39. Rxd5) 37... f5 {[%emt 0:01:38]} 38. exf5 {[%emt 0:01:27]} Bxf5 {[%emt 0:00:37]} 39. Bc3 {[%emt 0:06:09]} Be4 {[%emt 0:00:30] Inhibits Rd5.} 40. Bxe4 {[%emt 0:10:34]} Rxe4 {[%emt 0:00:06]} 41. Qf3 {[%emt 0:32:49]} (41. Rd5 $11 Qc6 42. Be5 $1) 41... Rde7 {[%emt 0:31:08]} (41... Qc6 $15) 42. Be5 {[%emt 0:05:47]} c3 $1 {[%emt 0:00:00]} 43. Rd3 {[%emt 0:00:00]} Qa4 $15 {[%emt 0:00:00]} 44. Bxc3 {[%emt 0:00:00]} Re2+ {[%emt 0:00:00]} 45. Kg1 {[%emt 0:00:00]} Qxc2 {[%emt 0:00:00]} 46. f5 {[%emt 0:00:00] [#]} (46. R3d2 $15 Qb3 47. Qd5+ Qxd5 48. Rxd5) 46... R7e4 {[%emt 0:00:00]} (46... R7e3 $142 $1 {[%cal Re3f3][%mdl 512]} 47. Qd5+ Kh8 48. Rxe3 Rxe3) 47. f6 {[%emt 0:00:00]} gxf6 {[%emt 0:00:00]} 48. Kf1 {[%emt 0:00:00]} (48. Qxf6 $2 {is a self mate.} Rg2+ 49. Kh1 Rh2+ 50. Kg1 Qg2#) (48. R3d2 $142 R2e3 49. Rxc2 Rxf3 50. Kg2) 48... Rh2 $2 {[%emt 0:00:03]} 49. R3d2 $11 {[%emt 0:00:00]} Rxd2 {[%emt 0:00:46]} 50. Rxd2 {[%emt 0:00:00]} Qb1+ {[%emt 0:01:15]} 51. Kg2 {[%emt 0:00:00] And now Rb2 would win.} f5 $2 {[%emt 0:00:43]} (51... Re6 $11 {and Black has nothing to worry.}) 52. Qh5 $2 {[%emt 0:00:33]} ({Don't go for} 52. Qxf5 $2 Re2+ $3 {[%mdl 512]} 53. Rxe2 Qxf5 $19) ({White must play} 52. Rb2 $1 $18 {[%cal Rb2b1]} Qc1 53. Qxf5 Qxc3 54. Rf2) 52... Re6 $17 {[%emt 0:00:15]} 53. Rf2 {[%emt 0:02:21] [#]} Qe4+ $1 {[%emt 0:01:10]} 54. Kh2 {[%emt 0:00:28]} d5 {[%emt 0:02:12]} ({Black should try} 54... Bh6 $17 {Strongly threatening ...Be3.} 55. Rxf5 Qe2+ 56. Kh1 Qxh5 57. Rxh5 Be3) 55. Qg5+ $11 {[%emt 0:03:56]} Rg6 {[%emt 0:00:09]} 56. Qxf5 {[%emt 0:00:47]} Qxf5 {[%emt 0:00:06]} 57. Rxf5 {[%emt 0:00:03][%mdl 4096] Endgame KRB-KRB} Rc6 {[%emt 0:00:30]} 58. Bd4 {[%emt 0:01:50]} Rc2+ {[%emt 0:00:33]} 59. Kh1 {[%emt 0:00:23]} (59. Kg1 $11 {keeps the balance.}) 59... b5 {[%emt 0:00:56] Threatens to win with ...Be7.} 60. Rxd5 {[%emt 0:00:15]} b4 {[%emt 0:00:06]} 61. Rb5 {[%emt 0:01:04]} h6 {[%emt 0:01:15]} (61... Kf7 $15) 62. Rb7 {[%emt 0:00:26] The position is equal.} Rd2 {[%emt 0:00:53]} 63. Be5 {[%emt 0:00:28]} Re2 {[%emt 0:00:08]} 64. Bd4 {[%emt 0:00:24]} Rd2 {[%emt 0:00:41]} 65. Be5 {[%emt 0:00:07]} Re2 {[%emt 0:00:49]} 66. Bd4 {[%emt 0:00:08]} Re4 {[%emt 0:00:43]} 67. Bf6 {[%emt 0:00:49]} Re6 {[%emt 0:00:26]} 68. Bd4 {[%emt 0:00:16]} Re4 {[%emt 0:00:15]} 69. Bf6 {[%emt 0:00:07]} Re6 {[%emt 0:00:50] Weighted Error Value: White=0.24 (precise) /Black=0.23 (precise)} 1/2-1/2

[Event "Czech Championship 2022"]
[Site "Usti nad Labem"]
[Date "2022.05.22"]
[Round "9.17"]
[White "Horak, Jiri"]
[Black "Bokhnak, Timofey"]
[Result "1/2-1/2"]
[ECO "B14"]
[WhiteElo "2161"]
[BlackElo "2060"]
[Annotator "TA"]
[PlyCount "76"]
[EventDate "2022.05.12"]
[EventType "swiss"]
[EventCountry "CZE"]
[SourceTitle "playchess.com"]
[Source "ChessBase"]
[SourceQuality "1"]
[TimeControl "40/5400+30:1800+30"]

{[%evp 11,76,8,25,-9,40,44,35,39,60,64,67,59,81,72,95,64,89,96,99,81,72,66,70,39,45,38,127,129,158,144,146,149,148,112,126,126,131,93,162,161,265,110,110,96,101,102,118,0,0,0,0,0,0,0,0,0,0,0,0,0,0,-6,0,0,0,0,0]} 1. e4 {[%emt 0:00:03]} c6 {[%emt 0:00:10]} 2. d4 {[%emt 0:00:09]} d5 {[%emt 0:00:04]} 3. exd5 {[%emt 0:00:24]} cxd5 {[%emt 0:00:11]} 4. c4 {[%emt 0:00:05][%cal Bc2c4,Bc4c5][%mdl 32]} e6 {[%emt 0:01:13]} 5. Nc3 {[%emt 0:00:18]} Nf6 {[%emt 0:02:18]} 6. Nf3 {[%emt 0:00:15]} Nc6 {[%emt 0:02:55]} 7. Bf4 {[%emt 0:01:29] B14: Caro-Kann: Panov-Botvinnik Attack with 5...e6 and 5...g6.} Bd6 {[%emt 0:03:02]} (7... Bb4 $11 {feels stronger.}) 8. Bxd6 $1 $14 {[%emt 0:00:17]} Qxd6 {[%emt 0:00:05]} 9. c5 {[%emt 0:00:17] White is slightly better.} Qd8 {[%emt 0:01:09]} 10. Bb5 {[%emt 0:05:11]} O-O {[%emt 0:02:35]} 11. O-O {[%emt 0:00:54]} Ne7 {[%emt 0:06:26]} 12. b4 {[%emt 0:01:42] [#]} Qc7 $146 {[%emt 0:11:08]} ({Predecessor:} 12... Ne4 13. Qc2 Nxc3 14. Qxc3 Qc7 15. Bd3 g6 16. a4 Bd7 17. b5 Rfc8 18. Ne5 Be8 {0-1 (71) Spacapan,S (1938)-Kodela,M (2001) Celje 2014}) 13. Qd2 {[%emt 0:06:19]} Rd8 {[%emt 0:04:01]} 14. Bd3 {[%emt 0:02:50]} a6 {[%emt 0:01:48]} 15. Rfe1 {[%emt 0:01:47]} Bd7 {[%emt 0:03:53]} 16. Ne5 {[%emt 0:03:29]} Be8 {[%emt 0:02:33]} 17. a4 {[%emt 0:07:23][%cal Ba2a4,Ba4a5][%mdl 32] White is much more active. The black rooks are badly placed.} b6 {[%emt 0:00:50]} 18. a5 {[%emt 0:06:33]} b5 {[%emt 0:02:06]} (18... bxa5 $14 19. Rxa5 Rab8) 19. Ne2 $36 {[%emt 0:09:36][%mdl 2048] White has strong initiative.} Nd7 {[%emt 0:01:02]} 20. Nxd7 {[%emt 0:07:25]} Bxd7 {[%emt 0:00:49]} 21. Ra3 {[%emt 0:02:43]} Nc6 {[%emt 0:03:20]} 22. f4 {[%emt 0:03:31]} f6 {[%emt 0:02:38]} 23. Bb1 {[%emt 0:01:24][%cal Of4f5]} Be8 {[%emt 0:02:14]} 24. Rh3 {[%emt 0:01:49]} g6 {[%emt 0:00:08]} (24... Bg6 $16) 25. Ng3 $18 {[%emt 0:02:41]} Bf7 {[%emt 0:03:28] [#]} (25... Rac8 $142 26. Rxe6 Bf7) 26. Nf1 {[%emt 0:03:58]} (26. f5 $1 $18 {Black must now prevent Qh6.} gxf5 27. Qh6) 26... Rf8 $16 {[%emt 0:08:42]} 27. Rh4 {[%emt 0:03:19]} Rae8 {[%emt 0:06:02]} 28. Ne3 {[%emt 0:01:00]} Qd8 {[%emt 0:06:33]} 29. Ng4 {[%emt 0:10:08]} ({Better is} 29. Rf1 $16) 29... f5 $11 {[%emt 0:00:23] The position is equal.} 30. Nh6+ {[%emt 0:00:38]} Kg7 {[%emt 0:01:46]} 31. Rh3 {[%emt 0:00:34] And now g4 would win.} Qf6 {[%emt 0:00:06]} 32. Rd1 {[%emt 0:03:51]} Bg8 {[%emt 0:00:20]} 33. Nxg8 {[%emt 0:02:31]} Kxg8 {[%emt 0:00:38]} 34. Rd3 {[%emt 0:00:13]} Re7 {[%emt 0:00:08]} 35. Re1 {[%emt 0:00:10]} Kh8 {[%emt 0:00:22]} 36. Bc2 {[%emt 0:00:27]} Rg7 {[%emt 0:00:38]} 37. Bd1 {[%emt 0:01:26]} Rfg8 {[%emt 0:01:19]} 38. Rde3 {[%emt 0:06:24]} Re7 {[%emt 0:01:45] Blacks defense is rewarded with a draw.  Weighted Error Value: White=0.16 (very precise) /Black=0.17 (very precise)} (38... Nxd4 $2 39. Re5 Nc6 40. Rxe6 Qd4+ 41. Qxd4 Nxd4 42. Rxa6 $18) ({But not} 38... Qxd4 39. Qxd4 Nxd4 40. Rd3 $14) 1/2-1/2